fUST/lending_fUST_20250613
["ID","MTS","AMOUNT","RATE_DAILY","PERIOD"]
[365634591,1749814248015,-844.94977992,0.00023,7]
[365634592,1749814248025,-844.94977992,0.00023,3]
[365634593,1749814248035,-424.32678023,0.00023,3]
[365634594,1749814248044,-424.32678023,0.00023,3]
[365634595,1749814248054,-500.0,0.00023,3]
[365634597,1749814248064,-151.0,0.00023,7]
[365634599,1749814248073,-460.0,0.00023013,4]
[365634601,1749814248082,-460.0,0.00023013,2]
[365634602,1749814248091,-571.42,0.00023013,4]
[365634604,1749814248101,-460.0,0.00023013,4]
[365634606,1749814248110,-655.11,0.00023013,4]
[365634608,1749814248120,-460.0,0.00023013,4]
[365634610,1749814248129,-932.67,0.00023013,4]
[365634612,1749814248140,-460.0,0.00023013,4]
[365634614,1749814248149,-460.0,0.00023013,4]
[365634616,1749814248160,-360.0,0.00023013,4]
[365634618,1749814248169,-460.0,0.00023013,4]
[365634620,1749814248179,-460.0,0.00023013,4]
[365634622,1749814248189,-460.0,0.00023013,4]
[365634624,1749814248200,-460.0,0.00023013,4]
[365634626,1749814248209,-887.88,0.00023013,4]
[365634628,1749814248219,-2798.6,0.00023013,4]
[365634630,1749814248229,-1126.63,0.00023013,4]
[365634632,1749814248239,-717.67,0.00023013,4]
[365634634,1749814248248,-1041.72,0.00023013,4]
[365634636,1749814248258,-750.28,0.00023013,4]
[365634638,1749814248267,-360.0,0.00023013,4]
[365634640,1749814248277,-645.59,0.00023013,4]
[365634642,1749814248287,-782.08,0.00023013,4]
[365634644,1749814248296,-161.44966308,0.00023014,2]
[365634646,1749814248305,-183.0,0.00023014,7]
[365634648,1749814248315,-4990.42,0.00023057,2]
[365634650,1749814248324,-151.0,0.000231,9]
[365634652,1749814248334,-151.0,0.000231,9]
[365634654,1749814248344,-501.0376075,0.000231,2]
[365634656,1749814248354,-3004.0,0.00023128,3]
[365634658,1749814248363,-6000.0,0.00023186,3]
[365634660,1749814248373,-155.0,0.00023203,2]
[365634662,1749814248383,-3000.0,0.00023248,3]
[365634664,1749814248393,-160.0,0.00023259,5]
[365634666,1749814248402,-150.5,0.0002326,120]
[365634668,1749814248412,-150.5,0.0002326,120]
[365634670,1749814248421,-6000.0,0.00023262,3]
[365634672,1749814248431,-150.5,0.0002327,120]
[365634674,1749814248440,-4.88316146,0.0002327,120]
[365634689,1749814248564,-213.24139183,0.00022966,2]
[365634691,1749814248574,-145.61683854,0.0002327,120]
[365634693,1749814248585,-500.0,0.00023273,2]
[365634695,1749814248595,-150.5,0.0002328,120]
[365634697,1749814248604,-150.5,0.0002328,120]
[365634699,1749814248614,-45.40303806,0.00023287,4]
[365634840,1749814250009,-0.02500769,0.00023287,4]
[365634842,1749814250023,-414.57195425,0.00023287,4]
[365634844,1749814250034,-173.66463551,0.00023287,2]
[365634846,1749814250045,-286.33536449,0.00023287,2]
[365634848,1749814250054,-571.42,0.00023287,4]
[365634850,1749814250064,-460.0,0.00023287,4]
[365634852,1749814250073,-655.11,0.00023287,4]
[365634854,1749814250082,-172.9,0.00023287,4]
[365634857,1749814250092,-932.67,0.00023287,4]
[365634858,1749814250101,-460.0,0.00023287,4]
[365634860,1749814250110,-460.0,0.00023287,4]
[365634862,1749814250119,-485.77,0.00023287,4]
[365634865,1749814250129,-460.0,0.00023287,4]
[365634866,1749814250140,-460.0,0.00023287,4]
[365634868,1749814250149,-460.0,0.00023287,4]
[365634870,1749814250158,-887.88,0.00023287,4]
[365634872,1749814250168,-2798.6,0.00023287,4]
[365634874,1749814250178,-424.1275056,0.00023287,4]
[365634881,1749814250232,500.0,0.00024998,120]
[365634893,1749814250337,710.66527,0.00024998,60]
[365634932,1749814250705,500.0,0.00024998,120]
[365635739,1749814259129,500.0,0.00024998,120]
[365635832,1749814265234,500.0,0.00024998,120]
[365635833,1749814275054,500.0,0.00024998,120]
[365635835,1749814295660,500.0,0.00024998,120]
[365635836,1749814307269,500.0,0.00024998,120]
[365635837,1749814319734,500.0,0.00024998,120]
[365635838,1749814328557,500.0,0.00024998,120]
[365635839,1749814352141,500.0,0.00024998,120]
[365635840,1749814361251,500.0,0.00024998,120]
[365635843,1749814398911,2000.0,0.00018989,120]
[365635844,1749814408141,198.74583,0.00024998,120]
[365635849,1749814574906,1891.26527,0.00024988,60]
[365635901,1749814662163,-269.93,0.0002326,120]
[365635903,1749814662189,-150.5,0.0002327,120]
[365635904,1749814662213,-150.5,0.0002328,120]
[365635905,1749814662249,-200.0,0.0002358,120]
[365635906,1749814662275,-155.38,0.0002369,120]
[365635907,1749814662310,-386.83189446,0.000238,120]
[365635908,1749814662335,-500.0,0.000238,120]
[365635909,1749814662363,-500.0,0.000238,120]
[365635910,1749814662387,-500.0,0.000238,120]
[365635912,1749814662411,-500.0,0.000238,120]
[365635913,1749814662436,-500.0,0.000238,120]
[365635914,1749814662461,-500.0,0.000238,120]
[365635915,1749814662487,-500.0,0.000238,120]
[365635916,1749814662515,-500.0,0.000238,120]
[365635917,1749814662542,-500.0,0.000238,120]
[365635918,1749814662568,-500.0,0.000238,120]
[365635919,1749814662595,-500.0,0.000238,120]
[365635920,1749814662622,-500.0,0.000238,120]
[365635921,1749814662647,-500.0,0.000238,120]
[365635922,1749814662672,-500.0,0.000238,120]
[365635924,1749814662700,-500.0,0.000238,120]
[365635925,1749814662728,-500.0,0.000238,120]
[365635926,1749814662755,-500.0,0.000238,120]
[365635927,1749814662781,-500.0,0.000238,120]
[365635928,1749814662807,-500.0,0.000238,120]
[365635929,1749814662832,-500.0,0.000238,120]
[365635931,1749814662980,-500.0,0.000238,120]
[365635932,1749814663006,-500.0,0.000238,120]
[365635933,1749814663032,-500.0,0.000238,120]
[365635934,1749814663059,-500.0,0.000238,120]
[365635935,1749814663089,-500.0,0.000238,120]
[365635936,1749814663116,-500.0,0.000238,120]
[365635937,1749814663142,-500.0,0.000238,120]
[365635939,1749814663168,-500.0,0.000238,120]
[365635940,1749814663193,-500.0,0.000238,120]
[365635941,1749814663218,-500.0,0.000238,120]
[365635942,1749814663245,-500.0,0.000238,120]
[365635943,1749814663271,-500.0,0.000238,120]
[365635944,1749814663296,-500.0,0.000238,120]
[365635945,1749814663322,-500.0,0.000238,120]
[365635946,1749814663347,-500.0,0.000238,120]
[365635948,1749814663371,-500.0,0.000238,120]
[365635949,1749814663397,-500.0,0.000238,120]
[365635950,1749814663422,-500.0,0.000238,120]
[365635951,1749814663447,-500.0,0.000238,120]
[365635952,1749814663474,-500.0,0.000238,120]
[365635953,1749814663501,-500.0,0.000238,120]
[365635954,1749814663527,-500.0,0.000238,120]
[365635955,1749814663551,-500.0,0.000238,120]
[365635956,1749814663576,-500.0,0.000238,120]
[365635957,1749814663600,-500.0,0.000238,120]
[365635958,1749814663624,-500.0,0.000238,120]
[365635959,1749814663647,-500.0,0.000238,120]
[365635960,1749814663670,-500.0,0.000238,120]
[365635961,1749814663694,-500.0,0.000238,120]
[365635962,1749814663717,-500.0,0.000238,120]
[365635963,1749814663742,-500.0,0.000238,120]
[365635964,1749814663765,-500.0,0.000238,120]
[365635965,1749814663789,-500.0,0.000238,120]
[365635966,1749814663814,-435.23,0.000238,120]
[365635967,1749814663842,-500.0,0.000238,120]
[365635968,1749814663867,-500.0,0.000238,120]
[365635969,1749814663891,-500.0,0.000238,120]
[365635970,1749814663915,-500.0,0.000238,120]
[365635971,1749814663936,-500.0,0.000238,120]
[365635972,1749814663959,-500.0,0.000238,120]
[365635973,1749814663983,-500.0,0.000238,120]
[365635974,1749814664008,-500.0,0.000238,120]
[365635975,1749814664033,-500.0,0.000238,120]
[365635976,1749814664060,-500.0,0.000238,120]
[365635977,1749814664106,-500.0,0.000238,120]
[365635978,1749814664133,-500.0,0.000238,120]
[365635979,1749814664158,-500.0,0.000238,120]
[365635980,1749814664183,-500.0,0.000238,120]
[365635981,1749814664207,-500.0,0.000238,120]
[365635982,1749814664234,-500.0,0.000238,120]
[365635983,1749814664259,-500.0,0.000238,120]
[365635984,1749814664284,-500.0,0.000238,120]
[365635985,1749814664309,-500.0,0.000238,120]
[365635986,1749814664334,-613.17,0.000238,120]
[365635987,1749814664362,-200.0,0.00023864,120]
[365635988,1749814664388,-200.0,0.00023875,120]
[365635989,1749814664418,-1793.11320715,0.00024,120]
[365635990,1749814664443,-378.33486598,0.00024,120]
[365635991,1749814664469,-229.64800131,0.00024,120]
[365635992,1749814664497,-200.0,0.00024021,120]
[365635993,1749814664536,-200.0,0.00024053,120]
[365635994,1749814664564,-200.0,0.00024058,120]
[365635995,1749814664591,-200.0,0.0002406,120]
[365635996,1749814664620,-200.0,0.0002409,120]
[365635997,1749814664647,-371.26138746,0.00024108,120]
[365635998,1749814664674,-200.0,0.00024181,120]
[365635999,1749814664700,-200.0,0.00024184,120]
[365636000,1749814664729,-200.0,0.00024212,120]
[365636001,1749814664756,-200.0,0.00024234,120]
[365636002,1749814664784,-200.0,0.00024252,120]
[365636003,1749814664811,-200.0,0.00024273,120]
[365636004,1749814664839,-200.0,0.00024343,120]
[365636005,1749814664866,-200.0,0.00024353,120]
[365636006,1749814664892,-200.0,0.00024358,120]
[365636007,1749814664920,-200.0,0.0002438,120]
[365636008,1749814664948,-200.0,0.00024385,120]
[365636009,1749814664976,-200.0,0.00024405,120]
[365636010,1749814665004,-200.0,0.00024474,120]
[365636011,1749814665030,-1147.13530826,0.000245,120]
[365636012,1749814665058,-200.0,0.00024589,120]
[365636013,1749814665088,-449.73621508,0.000246,120]
[365636014,1749814665117,-500.35760467,0.0002465,120]
[365636015,1749814665147,-339.77333742,0.00024658,120]
[365636016,1749814665176,-1266.92514201,0.00024658,120]
[365636024,1749814788792,33812.65277973,0.000246,120]
[365636027,1749814814596,965.8,0.00024995,60]
[365636029,1749814827890,165.141644,0.00013699,2]
[365636030,1749814833931,500.0,0.00024995,120]
[365636031,1749814836201,500.0,0.00024995,120]
[365636032,1749814838064,500.0,0.00024995,120]
[365636033,1749814839479,500.0,0.00024995,120]
[365636034,1749814840578,500.0,0.00024995,120]
[365636035,1749814841810,500.0,0.00024995,120]
[365636036,1749814843261,500.0,0.00024995,120]
[365636037,1749814844689,500.0,0.00024995,120]
[365636038,1749814883348,1698.74583,0.00024995,120]
[365636075,1749815092271,-153.0,0.00019806,2]
[365636078,1749815103778,-19.125856,0.00019806,2]
[365636079,1749815103801,-1000.0,0.00019933,2]
[365636080,1749815103824,-300.0,0.00020031,2]
[365636081,1749815103849,-300.0,0.00020031,2]
[365636082,1749815103874,-24900.0,0.00020032,2]
[365636083,1749815103895,-160.0,0.00020095,2]
[365636084,1749815103917,-230.013193,0.00020292,2]
[365636085,1749815103940,-1212.6,0.00020424,2]
[365636086,1749815103962,-500.0,0.00020964,2]
[365636087,1749815103984,-157.05,0.00020964,2]
[365636088,1749815104007,-500.0,0.00021073,2]
[365636089,1749815104030,-2137.52,0.00021085,10]
[365636090,1749815104053,-3337.39,0.00021085,10]
[365636091,1749815104075,-1000.0,0.00021094,2]
[365636092,1749815104099,-1000.0,0.00021094,2]
[365636093,1749815104124,-1000.0,0.00021094,2]
[365636094,1749815104146,-1000.0,0.00021094,2]
[365636095,1749815104170,-171.78,0.00021094,2]
[365636096,1749815104192,-552.65960666,0.00021095,4]
[365636097,1749815104219,-430.0,0.00021095,4]
[365636098,1749815104246,-440.0,0.00021095,4]
[365636099,1749815104270,-440.0,0.00021095,4]
[365636100,1749815104295,-491.69200944,0.00021095,4]
[365636101,1749815104318,-398.2465211,0.00021095,4]
[365636102,1749815104340,-430.0,0.00021095,4]
[365636103,1749815104363,-449.38317962,0.00021095,4]
[365636104,1749815104388,-447.09027463,0.00021095,4]
[365636105,1749815104409,-460.0,0.00021095,4]
[365636106,1749815104431,-415.95647998,0.00021095,4]
[365636107,1749815104453,-424.22232644,0.00021095,4]
[365636108,1749815104476,-460.0,0.00021095,4]
[365636109,1749815104500,-460.0,0.00021095,4]
[365636110,1749815104521,-426.03708761,0.00021095,4]
[365636111,1749815104544,-460.0,0.00021095,4]
[365636112,1749815104565,-460.0,0.00021095,4]
[365636113,1749815104586,-460.0,0.00021095,4]
[365636114,1749815104610,-294.71615008,0.00021095,4]
[365636115,1749815104634,-304.80416743,0.00021095,4]
[365636116,1749815104655,-423.36963925,0.00021095,4]
[365636117,1749815104676,-444.7611609,0.00021095,4]
[365636118,1749815104698,-460.0,0.00021095,4]
[365636119,1749815104721,-440.0,0.00021095,4]
[365636120,1749815104742,-460.0,0.00021095,4]
[365636121,1749815104764,-460.0,0.00021095,4]
[365636122,1749815104789,-440.0,0.00021095,4]
[365636123,1749815104810,-435.87180651,0.00021095,4]
[365636124,1749815104833,-460.0,0.00021095,4]
[365636125,1749815104855,-460.0,0.00021095,4]
[365636126,1749815104879,-420.0,0.00021095,4]
[365636127,1749815104900,-460.0,0.00021095,4]
[365636128,1749815104922,-460.0,0.00021095,4]
[365636129,1749815104944,-460.0,0.00021095,4]
[365636130,1749815104967,-460.0,0.00021095,4]
[365636131,1749815104990,-460.0,0.00021095,4]
[365636132,1749815105012,-416.59698346,0.00021095,4]
[365636133,1749815105034,-460.0,0.00021095,4]
[365636134,1749815105058,-460.0,0.00021095,4]
[365636135,1749815105080,-428.55353666,0.00021095,4]
[365636136,1749815105102,-460.0,0.00021095,4]
[365636137,1749815105126,-397.44528553,0.00021095,4]
[365636138,1749815105149,-460.0,0.00021095,4]
[365636139,1749815105172,-400.32789946,0.00021095,4]
[365636140,1749815105195,-460.0,0.00021095,4]
[365636141,1749815105220,-460.0,0.00021095,4]
[365636142,1749815105242,-460.0,0.00021095,4]
[365636143,1749815105266,-428.64324128,0.00021095,4]
[365636144,1749815105290,-460.0,0.00021095,4]
[365636145,1749815105313,-460.0,0.00021095,4]
[365636146,1749815105337,-460.0,0.00021095,4]
[365636147,1749815105360,-426.60734563,0.00021095,4]
[365636148,1749815105383,-420.0,0.00021095,4]
[365636149,1749815105405,-440.0,0.00021095,4]
[365636150,1749815105428,-460.0,0.00021095,4]
[365636151,1749815105451,-410.0,0.00021095,4]
[365636152,1749815105472,-460.0,0.00021095,4]
[365636153,1749815105494,-370.0,0.00021095,4]
[365636154,1749815105517,-460.0,0.00021095,4]
[365636155,1749815105539,-420.0,0.00021095,4]
[365636156,1749815105561,-410.0,0.00021095,4]
[365636157,1749815105583,-440.0,0.00021095,4]
[365636158,1749815105605,-440.0,0.00021095,4]
[365636159,1749815105630,-795.63,0.00021095,4]
[365636160,1749815105652,-460.0,0.00021095,4]
[365636161,1749815105674,-460.0,0.00021095,4]
[365636162,1749815105697,-460.0,0.00021095,4]
[365636163,1749815105720,-460.0,0.00021095,4]
[365636164,1749815105743,-460.0,0.00021095,4]
[365636165,1749815105766,-440.0,0.00021095,4]
[365636166,1749815105790,-4297.38,0.00021095,4]
[365636167,1749815105814,-460.0,0.00021095,4]
[365636168,1749815105836,-460.0,0.00021095,4]
[365636169,1749815105859,-420.0,0.00021095,4]
[365636170,1749815105990,-460.0,0.00021095,4]
[365636171,1749815106012,-460.0,0.00021095,4]
[365636172,1749815106037,-1670.28,0.00021095,4]
[365636173,1749815106062,-460.0,0.00021095,4]
[365636174,1749815106084,-430.0,0.00021095,4]
[365636175,1749815106106,-460.0,0.00021095,4]
[365636176,1749815106130,-500.0,0.00021095,4]
[365636177,1749815106154,-517.32220188,0.00021095,4]
[365636178,1749815106177,-435.5634035,0.00021095,4]
[365636179,1749815106200,-460.0,0.00021095,4]
[365636180,1749815106225,-430.0,0.00021095,4]
[365636181,1749815106248,-1009.33,0.00021095,4]
[365636182,1749815106273,-460.0,0.00021095,4]
[365636183,1749815106297,-460.0,0.00021095,4]
[365636184,1749815106323,-460.0,0.00021095,4]
[365636185,1749815106346,-460.0,0.00021095,4]
[365636186,1749815106370,-432.58106041,0.00021095,4]
[365636187,1749815106394,-460.0,0.00021095,4]
[365636188,1749815106417,-460.0,0.00021095,4]
[365636189,1749815106440,-460.0,0.00021095,4]
[365636190,1749815106466,-980.47,0.00021095,4]
[365636191,1749815106488,-350.0,0.00021095,4]
[365636192,1749815106510,-460.0,0.00021095,4]
[365636193,1749815106532,-430.0,0.00021095,4]
[365636194,1749815106556,-460.0,0.00021095,4]
[365636195,1749815106578,-440.72880569,0.00021095,4]
[365636196,1749815106601,-420.0,0.00021095,4]
[365636197,1749815106625,-460.0,0.00021095,4]
[365636198,1749815106650,-1017.87,0.00021095,4]
[365636199,1749815106673,-460.0,0.00021095,4]
[365636200,1749815106696,-430.0,0.00021095,4]
[365636201,1749815106720,-460.0,0.00021095,4]
[365636202,1749815106742,-460.0,0.00021095,4]
[365636203,1749815106767,-1593.24,0.00021095,4]
[365636204,1749815106792,-1182.66,0.00021095,4]
[365636205,1749815106814,-430.0,0.00021095,4]
[365636206,1749815106836,-430.0,0.00021095,4]
[365636207,1749815106858,-460.0,0.00021095,4]
[365636208,1749815106881,-327.56847809,0.00021095,4]
[365636209,1749815106903,-460.0,0.00021095,4]
[365636210,1749815106925,-460.0,0.00021095,4]
[365636211,1749815106947,-460.0,0.00021095,4]
[365636212,1749815106969,-405.21667744,0.00021095,4]
[365636213,1749815106992,-460.0,0.00021095,4]
[365636214,1749815107016,-460.0,0.00021095,4]
[365636215,1749815107039,-460.0,0.00021095,4]
[365636216,1749815107063,-460.0,0.00021095,4]
[365636217,1749815107084,-582.02905234,0.00021095,4]
[365636218,1749815107109,-460.0,0.00021095,4]
[365636219,1749815107133,-460.0,0.00021095,4]
[365636220,1749815107156,-460.0,0.00021095,4]
[365636221,1749815107180,-460.0,0.00021095,4]
[365636222,1749815107204,-430.0,0.00021095,4]
[365636223,1749815107230,-460.0,0.00021095,4]
[365636224,1749815107255,-460.0,0.00021095,4]
[365636225,1749815107280,-460.0,0.00021095,4]
[365636226,1749815107305,-517.28720693,0.00021095,4]
[365636227,1749815107328,-576.48871557,0.00021095,4]
[365636228,1749815107349,-460.0,0.00021095,4]
[365636229,1749815107373,-460.0,0.00021095,4]
[365636230,1749815107396,-460.0,0.00021095,4]
[365636231,1749815107420,-460.0,0.00021095,4]
[365636232,1749815107444,-1068.23,0.00021095,4]
[365636233,1749815107467,-1068.23,0.00021095,4]
[365636234,1749815107490,-437.73362252,0.00021095,4]
[365636235,1749815107512,-460.0,0.00021095,4]
[365636236,1749815107534,-460.0,0.00021095,4]
[365636237,1749815107558,-460.0,0.00021095,4]
[365636238,1749815107584,-460.0,0.00021095,4]
[365636239,1749815107608,-460.0,0.00021095,4]
[365636240,1749815107634,-1009.38,0.00021095,4]
[365636241,1749815107657,-460.0,0.00021095,4]
[365636242,1749815107679,-460.0,0.00021095,4]
[365636243,1749815107701,-460.0,0.00021095,4]
[365636244,1749815107726,-1220.6,0.00021095,4]
[365636245,1749815107750,-1346.06,0.00021095,4]
[365636246,1749815107771,-399.59920262,0.00021095,4]
[365636247,1749815107793,-460.0,0.00021095,2]
[365636248,1749815107814,-460.0,0.00021095,4]
[365636249,1749815107835,-460.0,0.00021095,4]
[365636250,1749815107859,-460.0,0.00021095,4]
[365636251,1749815107883,-570.74,0.00021095,4]
[365636252,1749815107903,-460.0,0.00021095,4]
[365636253,1749815107926,-460.0,0.00021095,4]
[365636254,1749815107947,-433.56647156,0.00021095,4]
[365636255,1749815107969,-401.26695898,0.00021095,4]
[365636256,1749815107991,-430.0,0.00021095,4]
[365636257,1749815108012,-460.0,0.00021095,4]
[365636258,1749815108034,-434.45528702,0.00021095,4]
[365636259,1749815108056,-460.0,0.00021095,4]
[365636260,1749815108078,-460.0,0.00021095,4]
[365636261,1749815108102,-460.0,0.00021095,4]
[365636262,1749815108126,-400.0,0.00021095,4]
[365636263,1749815108147,-363.15667065,0.00021095,4]
[365636264,1749815108168,-460.0,0.00021095,4]
[365636265,1749815108190,-460.0,0.00021095,4]
[365636266,1749815108215,-460.0,0.00021095,4]
[365636267,1749815108238,-460.0,0.00021095,4]
[365636268,1749815108260,-430.0,0.00021095,4]
[365636269,1749815108282,-460.0,0.00021095,4]
[365636270,1749815108306,-430.0,0.00021095,4]
[365636271,1749815108327,-430.0,0.00021095,4]
[365636272,1749815108349,-460.0,0.00021095,4]
[365636273,1749815108371,-460.0,0.00021095,4]
[365636274,1749815108395,-460.0,0.00021095,4]
[365636275,1749815108418,-460.0,0.00021095,4]
[365636276,1749815108440,-460.0,0.00021095,4]
[365636277,1749815108463,-460.0,0.00021095,4]
[365636278,1749815108486,-435.39267255,0.00021095,4]
[365636279,1749815108607,-410.0,0.00021095,4]
[365636280,1749815108633,-460.0,0.00021095,4]
[365636281,1749815108655,-460.0,0.00021095,4]
[365636282,1749815108677,-460.0,0.00021095,4]
[365636283,1749815108699,-460.0,0.00021095,4]
[365636284,1749815108720,-500.0,0.00021095,2]
[365636285,1749815108742,-500.0,0.00021095,2]
[365636286,1749815108763,-500.0,0.00021095,2]
[365636287,1749815108786,-460.0,0.00021095,4]
[365636288,1749815108808,-500.0,0.00021095,2]
[365636289,1749815108831,-500.0,0.00021095,2]
[365636290,1749815108854,-460.0,0.00021095,4]
[365636291,1749815108879,-460.0,0.00021095,4]
[365636292,1749815108901,-460.0,0.00021095,4]
[365636293,1749815108925,-460.0,0.00021095,4]
[365636294,1749815108947,-430.0,0.00021095,4]
[365636295,1749815108972,-440.0,0.00021095,4]
[365636296,1749815108995,-460.0,0.00021095,4]
[365636297,1749815109018,-460.0,0.00021095,4]
[365636298,1749815109040,-480.40700973,0.00021095,4]
[365636299,1749815109065,-460.0,0.00021095,4]
[365636300,1749815109088,-460.0,0.00021095,4]
[365636301,1749815109112,-460.0,0.00021095,4]
[365636302,1749815109134,-280.0,0.00021095,4]
[365636303,1749815109157,-460.0,0.00021095,4]
[365636304,1749815109180,-517.8481705,0.00021095,4]
[365636305,1749815109203,-460.0,0.00021095,4]
[365636306,1749815109232,-364.2046547,0.00021095,4]
[365636307,1749815109257,-460.0,0.00021095,4]
[365636308,1749815109280,-460.0,0.00021095,4]
[365636309,1749815109305,-460.0,0.00021095,4]
[365636310,1749815109328,-393.47047848,0.00021095,4]
[365636311,1749815109351,-460.0,0.00021095,4]
[365636312,1749815109374,-339.64031325,0.00021095,4]
[365636313,1749815109396,-460.0,0.00021095,4]
[365636314,1749815109418,-460.0,0.00021095,4]
[365636315,1749815109440,-265.43624877,0.00021095,4]
[365636316,1749815109462,-460.0,0.00021095,4]
[365636317,1749815109484,-199.85759439,0.00021095,4]
[365636318,1749815109508,-560.18,0.00021095,4]
[365636319,1749815109532,-460.0,0.00021095,4]
[365636320,1749815109554,-460.0,0.00021095,4]
[365636321,1749815109575,-435.90494197,0.00021095,4]
[365636322,1749815109598,-460.0,0.00021095,4]
[365636323,1749815109966,2781.16,0.00021085,10]
[365636324,1749815110009,460.0,0.00021095,4]
[365636325,1749815110168,2148.69,0.00021095,4]
[365636326,1749815110312,420.0,0.00021095,4]
[365636327,1749815110361,437.04529841,0.00021095,4]
[365636328,1749815111735,967.27,0.00021095,4]
[365636329,1749815112219,460.0,0.00021095,4]
[365636330,1749815112941,460.0,0.00021095,4]
[365636331,1749815114532,460.0,0.00021095,4]
[365636332,1749815115181,460.0,0.00021095,4]
[365636333,1749815115410,781.64,0.00021095,4]
[365636334,1749815116203,460.0,0.00021095,4]
[365636335,1749815117868,420.0,0.00021095,4]
[365636336,1749815118667,430.0,0.00021095,4]
[365636337,1749815121181,460.0,0.00021095,4]
[365636338,1749815125242,155.0,0.00021095,2]
[365636339,1749815125413,460.0,0.00021095,4]
[365636340,1749815125439,460.0,0.00021095,4]
[365636341,1749815126977,460.0,0.00021095,4]
[365636342,1749815128054,431.91263748,0.00021095,4]
[365636343,1749815130448,-500.0,0.00021095,4]
[365636344,1749815130471,-187.94426928,0.00021259,2]
[365636345,1749815130494,-1000.0,0.00021358,2]
[365636346,1749815130517,-560.34,0.00021359,3]
[365636347,1749815130540,-186.78,0.00021359,3]
[365636348,1749815130563,-560.34,0.00021359,3]
[365636349,1749815130587,-373.56,0.00021359,3]
[365636350,1749815130611,-186.78,0.00021359,3]
[365636351,1749815130633,-560.34,0.00021359,3]
[365636352,1749815130658,-500.0,0.00021367,2]
[365636353,1749815130682,-500.0,0.00021367,2]
[365636354,1749815130708,-500.0,0.00021367,2]
[365636355,1749815130732,-500.0,0.00021367,2]
[365636356,1749815130757,-500.0,0.00021367,2]
[365636357,1749815130781,-500.0,0.00021367,2]
[365636358,1749815130804,-500.0,0.00021367,2]
[365636359,1749815130827,-500.0,0.00021367,2]
[365636360,1749815130852,-500.0,0.00021367,2]
[365636361,1749815130875,-500.0,0.00021367,2]
[365636362,1749815130900,-500.0,0.00021367,2]
[365636363,1749815130923,-500.0,0.00021367,2]
[365636364,1749815130946,-500.0,0.00021367,2]
[365636365,1749815130970,-500.0,0.00021367,2]
[365636366,1749815130993,-259.59017859,0.00021367,2]
[365636367,1749815131018,-500.0,0.00021367,2]
[365636368,1749815131042,-250.0,0.00021367,2]
[365636369,1749815131066,-500.0,0.00021367,2]
[365636370,1749815131089,-500.0,0.00021367,2]